bitfinex/quotes_BTCUSD_20250526
["timestamp","ask_amount","ask_price","bid_price","bid_amount"]
[1748257328313,0.10760115,109580.0,109570.0,1.42623751]
[1748257328851,0.11672673,109580.0,109570.0,1.42623751]
[1748257329562,0.11672673,109580.0,109570.0,1.28035751]
[1748257329805,0.11672673,109580.0,109570.0,1.42623751]
[1748257330242,0.11672665,109580.0,109570.0,1.42623751]
[1748257330517,0.11672707,109580.0,109570.0,1.42623751]
[1748257330761,0.29924212,109580.0,109570.0,1.42623751]
[1748257330972,0.11672757,109580.0,109570.0,1.42623751]
[1748257331488,0.10760182,109580.0,109570.0,1.42623751]
[1748257332474,0.11672748,109580.0,109570.0,1.42623751]
[1748257334413,0.27186629,109580.0,109570.0,0.34]
[1748257334631,0.36141185,109580.0,109570.0,0.36591864]
[1748257334840,0.24875829,109570.0,109560.0,0.40468018]
[1748257335048,0.24875829,109570.0,109560.0,0.74477085]
[1748257335049,0.25788462,109570.0,109560.0,0.74477085]
[1748257335252,0.25788462,109570.0,109560.0,0.40477085]
[1748257335375,0.25788462,109570.0,109560.0,0.71564876]
[1748257335597,0.25788462,109570.0,109560.0,0.80517027]
[1748257335989,0.25788462,109570.0,109560.0,1.17108891]
[1748257337326,0.25888462,109570.0,109560.0,1.17308891]
[1748257337537,0.25988462,109570.0,109560.0,1.17408891]
[1748257338209,0.25988462,109570.0,109560.0,1.36576469]
[1748257341592,0.25988462,109570.0,109560.0,1.37489202]
[1748257341858,0.25988462,109570.0,109560.0,1.3840191]
[1748257343485,0.25988462,109570.0,109560.0,1.37489202]
[1748257343723,0.25988462,109570.0,109560.0,1.39314643]
[1748257344610,0.25988462,109570.0,109560.0,1.40227351]
[1748257349412,0.25988462,109570.0,109560.0,1.76819215]
[1748257350419,0.25075804,109570.0,109560.0,1.40227351]
[1748257350636,0.08647865,109570.0,109560.0,1.76819157]
[1748257351075,0.28726269,109570.0,109560.0,1.76819157]
[1748257351706,0.28726344,109570.0,109560.0,1.76819157]
[1748257352257,0.10473173,109570.0,109560.0,1.76819157]
[1748257352638,0.28726344,109570.0,109560.0,1.76819157]
[1748257355968,0.09560515,109570.0,109560.0,1.76819157]
[1748257356403,0.08647865,109570.0,109560.0,1.76819157]
[1748257356606,0.27813686,109570.0,109560.0,1.76819157]
[1748257356837,0.09560515,109570.0,109560.0,1.76819157]
[1748257357041,0.27813686,109570.0,109560.0,1.76819157]
[1748257358339,0.27813736,109570.0,109560.0,1.91407174]
[1748257359950,0.27813736,109570.0,109560.0,1.90493179]
[1748257366879,0.27813736,109570.0,109560.0,1.89580496]
[1748257367082,0.2690112,109570.0,109560.0,1.89580496]
[1748257367303,0.2690112,109570.0,109560.0,1.52988632]
[1748257368327,0.2690112,109570.0,109560.0,1.52075932]
[1748257368536,0.2690112,109570.0,109560.0,0.78892204]
[1748257368745,0.2690112,109570.0,109560.0,1.52075932]
[1748257368952,0.2690112,109570.0,109560.0,1.50250516]
[1748257368953,0.25988479,109570.0,109560.0,1.50250516]
[1748257369160,0.25988479,109570.0,109560.0,1.51163241]
[1748257369573,0.25075829,109570.0,109560.0,1.51163241]
[1748257370780,0.24163171,109570.0,109560.0,1.50250516]
[1748257371819,0.24163171,109570.0,109560.0,1.31082946]
[1748257372024,0.24163171,109570.0,109560.0,1.16494946]
[1748257372237,0.24163171,109570.0,109560.0,1.40385632]
[1748257372467,0.24163171,109570.0,109560.0,1.22130795]
[1748257373940,0.24163171,109570.0,109560.0,1.07542795]
[1748257376327,0.38751171,109570.0,109560.0,0.00359067]
[1748257376536,0.47705727,109570.0,109560.0,0.00359067]
[1748257376735,0.56657878,109570.0,109560.0,0.00359067]
[1748257376966,0.47705727,109570.0,109560.0,0.36950931]
[1748257377401,0.47605727,109570.0,109560.0,0.36750931]
[1748257377801,0.47705727,109570.0,109560.0,0.36950931]
[1748257378227,0.47605727,109570.0,109560.0,0.36850931]
[1748257378590,0.47705727,109570.0,109560.0,0.36950931]
[1748257381278,0.86657878,109570.0,109560.0,0.00359067]
[1748257381497,1.01985878,109570.0,109560.0,0.00359067]
[1748257382222,1.31985878,109570.0,109560.0,0.00359067]
[1748257382434,1.68577742,109570.0,109560.0,0.00359067]
[1748257382589,1.31985878,109570.0,109560.0,0.00359067]
[1748257383188,1.68577742,109570.0,109560.0,0.00359067]
[1748257387181,1.74031827,109570.0,109560.0,0.00359067]
[1748257387602,2.10623691,109570.0,109560.0,0.00359067]
[1748257387801,2.10523691,109570.0,109560.0,0.00259067]
[1748257388001,2.10523691,109570.0,109530.0,0.0005]
[1748257388002,0.50083927,109540.0,109530.0,0.0005]
[1748257388205,0.06852975,109530.0,109520.0,0.21235385]
[1748257388412,0.34067368,109530.0,109520.0,0.21235385]
[1748257389440,0.34067368,109530.0,109520.0,0.21435385]
[1748257389666,0.34167368,109530.0,109520.0,0.21435385]
[1748257391032,0.34267368,109530.0,109520.0,0.21535385]
[1748257393361,0.34267368,109530.0,109520.0,0.58127249]
[1748257393784,0.02025941,109530.0,109520.0,1.13893683]
[1748257393995,0.01112916,109530.0,109520.0,1.2158974]
[1748257394202,0.02025849,109530.0,109520.0,1.2158974]
[1748257394650,0.002,109530.0,109520.0,1.2158974]
[1748257394854,0.01112916,109530.0,109520.0,1.2158974]
[1748257395010,0.01112916,109530.0,109520.0,1.30541891]
[1748257395379,0.02025849,109530.0,109520.0,1.30541891]
[1748257395777,0.002,109530.0,109520.0,1.30541891]
[1748257395980,0.002,109530.0,109520.0,2.81415318]
[1748257396224,0.002,109530.0,109520.0,2.22197518]
[1748257397056,0.01112916,109530.0,109520.0,1.74516518]
[1748257397406,0.01112916,109530.0,109520.0,1.62924518]
[1748257397612,0.01112916,109530.0,109520.0,1.54354218]
[1748257397818,0.02025841,109530.0,109520.0,1.54354218]
[1748257399579,0.02025841,109530.0,109520.0,1.43357618]
[1748257400053,0.02025841,109530.0,109520.0,1.61844218]
[1748257400751,0.02025841,109530.0,109520.0,1.55034218]
[1748257400964,0.02938782,109530.0,109520.0,1.55034218]
[1748257401364,0.02025841,109530.0,109520.0,1.55034218]
[1748257401528,0.002,109530.0,109520.0,1.55034218]
[1748257401951,0.01112916,109530.0,109520.0,1.55034218]
[1748257402320,0.002,109530.0,109520.0,1.55034218]
[1748257402690,0.01112933,109530.0,109520.0,1.55034218]
[1748257403765,0.02025874,109530.0,109520.0,1.43357618]
[1748257404409,0.02025874,109530.0,109520.0,1.52083618]
[1748257404915,0.20285711,109530.0,109520.0,1.52083618]
[1748257405116,0.22111694,109530.0,109520.0,0.79869571]
[1748257405346,0.23265803,109530.0,109520.0,0.94465571]
[1748257406453,0.23265803,109530.0,109520.0,0.79869571]
[1748257406695,0.23265803,109530.0,109520.0,0.94461571]
[1748257407592,0.23265803,109530.0,109520.0,0.60461571]
[1748257407906,0.23265803,109530.0,109520.0,0.45869571]
[1748257408106,0.26025803,109530.0,109520.0,0.60461571]
[1748257408932,0.26025803,109530.0,109520.0,0.45869571]
[1748257410293,0.26025803,109530.0,109520.0,0.08485348]
[1748257410500,0.26025803,109530.0,109520.0,0.3661742]
[1748257410707,0.2008762,109520.0,109510.0,0.71157742]
[1748257410906,0.2296762,109520.0,109510.0,1.08688287]
[1748257411112,0.2296762,109520.0,109510.0,0.72070867]
[1748257411309,0.2008762,109520.0,109510.0,0.56561742]
[1748257411524,0.2008762,109520.0,109510.0,0.69044455]
[1748257411689,0.2563762,109520.0,109510.0,0.62638514]
[1748257412095,0.2573762,109520.0,109510.0,0.62638514]
[1748257412725,0.2583762,109520.0,109510.0,0.62638514]
[1748257413231,0.25804792,109520.0,109510.0,0.48042514]
[1748257415632,0.34759348,109520.0,109510.0,0.02472943]
[1748257415837,0.34759348,109520.0,109510.0,0.39090363]
[1748257417707,0.49355348,109520.0,109510.0,0.39090363]
[1748257418093,0.49355348,109520.0,109510.0,0.3819336]
[1748257420491,0.34759348,109520.0,109510.0,0.39113725]
[1748257420698,0.49355348,109520.0,109510.0,0.39113725]
[1748257422722,0.49355348,109520.0,109510.0,0.48065876]
[1748257422949,0.49355348,109520.0,109510.0,0.39113725]
[1748257428620,0.34759348,109520.0,109510.0,0.57376897]
[1748257428840,0.43805348,109520.0,109510.0,0.58290038]
[1748257429079,0.28296298,109520.0,109510.0,0.58290055]
[1748257429501,0.28296298,109520.0,109510.0,0.59203205]
[1748257429940,0.19341742,109520.0,109510.0,0.69068497]
[1748257431479,0.19341742,109520.0,109510.0,0.6998163]
[1748257432486,0.19341742,109520.0,109510.0,0.69068497]
[1748257432728,0.19341742,109520.0,109510.0,0.66572192]
[1748257433740,0.19341742,109520.0,109510.0,0.65659051]
[1748257433867,0.18428676,109520.0,109510.0,0.65659051]
[1748257435773,0.18428676,109520.0,109510.0,0.45569571]
[1748257435976,0.21238676,109520.0,109510.0,0.45569571]
[1748257436885,0.21238676,109520.0,109510.0,0.64751637]
[1748257438027,0.21238676,109520.0,109510.0,0.46488465]
[1748257440010,0.21238676,109520.0,109510.0,0.09871045]
[1748257440447,0.1842411,109520.0,109510.0,0.29047375]
[1748257440657,0.1842411,109520.0,109510.0,0.29960525]
[1748257441435,0.1842411,109520.0,109510.0,0.29047375]
[1748257445882,0.002,109520.0,109510.0,0.7182675]
[1748257446084,0.01113,109520.0,109510.0,0.7182675]
[1748257446340,0.02939041,109520.0,109510.0,0.7456565]
[1748257447691,0.27010545,109520.0,109510.0,0.12609945]
[1748257447906,0.02739573,109500.0,109490.0,0.18266104]
[1748257448114,0.21004489,109500.0,109490.0,0.33775421]
[1748257448328,0.01826407,109500.0,109490.0,0.3651528]
[1748257448529,0.02739632,109500.0,109490.0,0.3651528]
[1748257449224,0.01841337,109500.0,109490.0,0.3651528]
[1748257449430,0.02754562,109500.0,109490.0,0.43060332]
[1748257449636,0.02954562,109500.0,109490.0,0.43060332]
[1748257450977,0.02041337,109500.0,109490.0,0.77060332]
[1748257452116,0.02041337,109500.0,109490.0,0.62464332]
[1748257452321,0.04991337,109500.0,109490.0,0.77060332]
[1748257452501,0.04991287,109500.0,109490.0,0.77060332]
[1748257452703,0.02954495,109500.0,109490.0,0.77060332]
[1748257453115,0.02954495,109500.0,109490.0,0.62464332]
[1748257453326,0.02954495,109500.0,109490.0,0.77060332]
[1748257453520,0.0386772,109500.0,109490.0,0.77060332]
[1748257453721,0.06054495,109500.0,109490.0,0.77060332]
[1748257455175,0.0696772,109500.0,109490.0,0.77060332]
[1748257455427,0.0680772,109500.0,109490.0,0.77060332]
[1748257456207,0.0680772,109500.0,109490.0,0.62464332]
[1748257456421,0.25985802,109500.0,109490.0,0.28464348]
[1748257456630,0.25985802,109500.0,109490.0,0.29377623]
[1748257456928,0.28132636,109500.0,109490.0,0.06545052]
[1748257457131,0.26306237,109500.0,109490.0,0.20093133]
[1748257457639,0.26306237,109500.0,109490.0,0.21006433]
[1748257457847,0.01826542,109490.0,109480.0,0.72331118]
[1748257458053,0.00913267,109490.0,109480.0,0.83529718]
[1748257458253,0.0182655,109490.0,109480.0,0.72331118]
[1748257458391,0.0182655,109490.0,109480.0,0.81283269]
[1748257459038,0.0202655,109490.0,109480.0,0.81283269]
[1748257460220,0.0212655,109490.0,109480.0,0.66687269]
[1748257460431,0.0212655,109490.0,109480.0,0.93203069]
[1748257460688,0.02126542,109490.0,109480.0,0.93203069]
[1748257461063,0.03039834,109490.0,109480.0,0.93203069]
[1748257461383,0.02126542,109490.0,109480.0,0.93203069]
[1748257462016,0.02126542,109490.0,109480.0,0.96083069]
[1748257462844,0.01213267,109490.0,109480.0,0.96083069]
[1748257463100,0.003,109490.0,109480.0,1.0943171]
[1748257466471,0.003,109490.0,109480.0,1.12346685]
[1748257470027,0.003,109490.0,109480.0,1.85623931]
[1748257475020,0.003,109490.0,109480.0,1.12346685]
[1748257475227,0.003,109490.0,109480.0,1.90623931]
[1748257476150,0.003,109490.0,109480.0,1.91952413]
[1748257477180,0.003,109490.0,109480.0,1.89037438]
[1748257480161,0.0001493,109500.0,109490.0,0.22460469]
[1748257480397,0.0001493,109500.0,109490.0,5.54247545]
[1748257480600,0.0001493,109500.0,109490.0,5.16518441]
[1748257481445,0.0011493,109500.0,109490.0,4.95261341]
[1748257482099,0.0021493,109500.0,109490.0,4.95261341]
[1748257482742,0.0021493,109500.0,109490.0,5.34261341]
[1748257482948,1e-08,109500.0,109490.0,5.34261341]
[1748257483147,0.0598,109530.0,109520.0,0.55000627]
[1748257483368,0.0598,109530.0,109520.0,2.57019445]
[1748257483572,0.0598,109530.0,109520.0,2.06484945]
[1748257483703,0.0598,109530.0,109520.0,1.91871245]
[1748257484310,0.0608,109530.0,109520.0,1.92171245]
[1748257484562,0.0608,109530.0,109520.0,1.55532622]
[1748257484790,0.0618,109530.0,109520.0,1.55532622]
[1748257486001,0.0618,109530.0,109520.0,1.13553022]
[1748257486670,0.0618,109530.0,109520.0,0.63004799]
[1748257486875,0.08005891,109530.0,109520.0,0.91989014]
[1748257487086,0.28091651,109530.0,109520.0,0.91989031]
[1748257487262,0.28091651,109530.0,109520.0,0.92902056]
[1748257487509,0.28091651,109530.0,109520.0,1.00941182]
[1748257488067,0.28091651,109530.0,109520.0,1.01854207]
[1748257489399,0.28091651,109530.0,109520.0,1.00941182]
[1748257489625,0.26265794,109530.0,109520.0,0.00349764]
[1748257490987,0.4981635,109530.0,109520.0,0.00349764]
[1748257493148,0.25214579,109520.0,109510.0,0.37551781]
[1748257493947,0.25214579,109520.0,109510.0,0.55814953]
[1748257494447,0.25314579,109520.0,109510.0,0.64967104]
[1748257494888,0.25414579,109520.0,109510.0,0.64967104]
[1748257495673,0.25414579,109520.0,109510.0,0.45790774]
[1748257498272,0.25414579,109520.0,109510.0,0.64053946]
[1748257498600,0.25414579,109520.0,109510.0,0.45790774]
[1748257500698,0.25414579,109520.0,109510.0,0.002]
[1748257502631,0.25414579,109520.0,109510.0,0.36838623]
[1748257503943,0.25414579,109520.0,109510.0,0.002]
[1748257504149,0.34369135,109520.0,109510.0,0.002]
[1748257504529,0.48965135,109520.0,109510.0,0.002]
[1748257504951,0.94555909,109520.0,109510.0,0.002]
[1748257505633,1.24555909,109520.0,109510.0,0.002]
[1748257506261,0.34369135,109520.0,109510.0,0.002]
[1748257506458,0.01826375,109500.0,109490.0,0.21006331]
[1748257506578,0.21004448,109500.0,109490.0,0.57644954]
[1748257506774,0.02739608,109500.0,109490.0,0.57644954]
[1748257506975,0.21004448,109500.0,109490.0,0.66068435]
[1748257507232,0.01826375,109500.0,109490.0,1.00068435]
[1748257507427,0.07696275,109510.0,109500.0,0.02739649]
[1748257507646,0.01826225,109510.0,109500.0,1.29194935]
[1748257507851,0.02739366,109510.0,109500.0,1.29194935]
[1748257508057,0.02739366,109510.0,109500.0,1.34554379]
[1748257508292,0.03652516,109510.0,109500.0,1.33641196]
[1748257508437,0.27895688,109510.0,109500.0,0.97002573]
[1748257509357,0.25035746,109510.0,109500.0,0.97915773]
[1748257509564,0.25135746,109510.0,109500.0,0.97915773]
[1748257510331,0.24222621,109510.0,109500.0,0.97915773]
[1748257510508,0.27362621,109510.0,109500.0,0.97915773]
[1748257510856,0.27362621,109510.0,109500.0,0.98828964]
[1748257512050,0.05046249,109510.0,109500.0,0.98828905]
[1748257512226,0.06872481,109510.0,109500.0,0.98828905]
[1748257512440,0.26048811,109510.0,109500.0,0.98828905]
[1748257512585,0.06872481,109510.0,109500.0,0.98828905]
[1748257512799,0.02026199,109510.0,109500.0,1.35467528]
[1748257513006,0.02939315,109510.0,109500.0,1.35467528]
[1748257513215,0.002,109510.0,109500.0,1.50512084]
[1748257513505,0.002,109510.0,109500.0,3.87902684]
[1748257513728,0.002,109510.0,109500.0,3.79876284]
[1748257513919,0.002,109510.0,109500.0,2.21541084]
[1748257514339,0.002,109510.0,109500.0,2.22995169]
[1748257514555,0.002,109510.0,109500.0,2.25733869]
[1748257517788,0.002,109510.0,109500.0,2.28648665]
[1748257527720,0.002,109510.0,109500.0,2.33648665]
[1748257530550,0.00049881,109530.0,109520.0,0.62604712]
[1748257530761,0.00049881,109530.0,109520.0,6.06339795]
[1748257530915,0.00049881,109530.0,109520.0,5.21816895]
[1748257531129,0.00049881,109530.0,109520.0,4.84752595]
[1748257532082,0.00149881,109530.0,109520.0,4.84952595]
[1748257532574,0.00249881,109530.0,109520.0,4.85352595]
[1748257534422,0.00249881,109530.0,109520.0,4.90352595]
[1748257534893,0.00249881,109530.0,109520.0,4.93259946]
[1748257535564,0.00249881,109530.0,109520.0,4.94259946]
[1748257540757,0.08052675,109560.0,109550.0,0.91633499]
[1748257540970,0.08066338,109560.0,109550.0,1.11584943]
[1748257541209,0.07153663,109560.0,109550.0,1.11584943]
[1748257541431,0.07153663,109560.0,109550.0,1.20539499]
[1748257542239,0.07253663,109560.0,109550.0,1.20539499]
[1748257542678,0.07253663,109560.0,109550.0,1.04040619]
[1748257542875,0.07253663,109560.0,109550.0,1.06778992]
[1748257545158,0.07253663,109560.0,109550.0,1.87830292]
[1748257545591,0.07253663,109560.0,109550.0,1.89284377]
[1748257552770,0.07253663,109560.0,109550.0,1.92021877]
[1748257552975,0.07253663,109560.0,109550.0,2.286605]
[1748257554026,0.07253663,109560.0,109550.0,1.92021877]
[1748257556636,0.07253663,109560.0,109550.0,2.286605]
[1748257559158,0.07253663,109560.0,109550.0,0.71984454]
[1748257559374,0.29159314,109560.0,109550.0,0.95998871]
[1748257559590,0.29159314,109560.0,109550.0,0.97824446]
[1748257559591,0.0907902,109560.0,109550.0,0.97824446]
[1748257559795,0.0907902,109560.0,109550.0,0.98737212]
[1748257560005,0.0999172,109560.0,109550.0,0.98737212]
[1748257560208,0.10904445,109560.0,109550.0,0.84145212]
[1748257560415,0.10904428,109560.0,109550.0,0.98737212]
[1748257561162,0.11817153,109560.0,109550.0,0.98737212]
[1748257561794,0.10904428,109560.0,109550.0,0.98737212]
[1748257562011,0.11817153,109560.0,109550.0,0.98737212]
[1748257562307,0.11817144,109560.0,109550.0,0.98737212]
[1748257562489,0.11817144,109560.0,109550.0,0.78497719]
[1748257563135,0.11817203,109560.0,109550.0,0.78497719]
[1748257563400,0.10904478,109560.0,109550.0,0.78497719]
[1748257563832,0.09991762,109560.0,109550.0,0.78497719]
[1748257564043,0.10904487,109560.0,109550.0,0.63905719]
[1748257564250,0.10904487,109560.0,109550.0,0.78497719]
[1748257564428,0.10904487,109560.0,109550.0,1.12497719]
[1748257565135,0.09991762,109560.0,109550.0,0.61267096]
[1748257565312,0.10904487,109560.0,109550.0,1.12497719]
[1748257566555,0.09991762,109560.0,109550.0,1.12497719]
[1748257566768,0.10904487,109560.0,109550.0,1.12497719]
[1748257569371,0.09991762,109560.0,109550.0,1.12497719]
[1748257571009,0.10904478,109560.0,109550.0,1.12497719]
[1748257571176,0.11817203,109560.0,109550.0,1.12497719]
[1748257573230,0.10904478,109560.0,109550.0,1.12497719]
[1748257574364,0.10904478,109560.0,109550.0,0.97905719]
[1748257574590,0.11817203,109560.0,109550.0,1.12497719]
[1748257577154,0.11817253,109560.0,109550.0,1.11584953]
[1748257577362,0.10904512,109560.0,109550.0,1.12497719]
[1748257579001,0.09991787,109560.0,109550.0,1.12497719]
[1748257579617,0.09079038,109560.0,109550.0,1.12497719]
[1748257579923,0.09991754,109560.0,109550.0,1.12497719]
[1748257580127,0.09079038,109560.0,109550.0,1.12497719]
[1748257580335,0.09991746,109560.0,109550.0,1.12497719]
[1748257581764,0.09079038,109560.0,109550.0,1.12497719]
[1748257583969,0.09991754,109560.0,109550.0,1.12497719]
[1748257584158,0.09079038,109560.0,109550.0,1.12497719]
[1748257584559,0.09991746,109560.0,109550.0,1.12497719]
[1748257584996,0.08166338,109560.0,109550.0,1.12497719]
[1748257585207,0.09079029,109560.0,109550.0,1.12497719]
[1748257585613,0.06059021,109560.0,109550.0,1.12497719]
[1748257585997,0.06971712,109560.0,109550.0,1.12497719]
[1748257587740,0.09871712,109560.0,109550.0,1.12497719]
[1748257588491,0.10784428,109560.0,109550.0,1.12497719]
[1748257588693,0.10784412,109560.0,109550.0,1.12497719]
[1748257589085,0.11697128,109560.0,109550.0,1.12497719]
[1748257589417,0.10784412,109560.0,109550.0,1.12497719]
[1748257590740,0.11697128,109560.0,109550.0,0.97905719]
[1748257590947,0.10784453,109560.0,109550.0,1.12497719]
[1748257591692,0.09871737,109560.0,109550.0,1.12497719]
[1748257591921,0.08046346,109560.0,109550.0,1.12497719]
[1748257592187,0.07133663,109560.0,109550.0,1.12497719]
[1748257592366,0.04233663,109560.0,109550.0,1.12497719]
[1748257592571,0.05146338,109560.0,109550.0,1.12497719]
[1748257593998,0.05146338,109560.0,109550.0,0.97905719]
[1748257593999,0.06059029,109560.0,109550.0,0.97905719]
[1748257594214,0.05146338,109560.0,109550.0,1.12497719]
[1748257594356,0.06059029,109560.0,109550.0,1.12497719]
[1748257594565,0.09981729,109560.0,109550.0,0.91134947]
[1748257595931,0.09981729,109560.0,109550.0,0.78368522]
[1748257595932,0.10894454,109560.0,109550.0,0.78368522]
[1748257596132,0.10894454,109560.0,109550.0,0.92960522]
[1748257596338,0.10894445,109560.0,109550.0,0.9387333]
[1748257596541,0.09981729,109560.0,109550.0,0.9387333]
[1748257596945,0.10894445,109560.0,109550.0,0.9387333]
[1748257597151,0.1180717,109560.0,109550.0,0.9387333]
[1748257597544,0.1180717,109560.0,109550.0,1.02296811]
[1748257597763,0.1180717,109560.0,109550.0,0.9387333]
[1748257598520,0.30062007,109560.0,109550.0,0.9387333]
[1748257598721,0.11807228,109560.0,109550.0,0.9387333]
[1748257598850,0.10894495,109560.0,109550.0,0.9661103]
[1748257599328,0.10894495,109560.0,109550.0,1.05034511]
[1748257599529,0.29149332,109560.0,109550.0,0.9661103]
[1748257599740,0.11807228,109560.0,109550.0,0.9661103]
[1748257599939,0.11807228,109560.0,109550.0,0.96582156]
[1748257602440,0.0906902,109560.0,109550.0,0.96582156]
[1748257602655,0.09069012,109560.0,109550.0,1.05005637]
[1748257602866,0.08156329,109560.0,109550.0,0.96582156]
[1748257603075,0.0906902,109560.0,109550.0,0.81990156]
[1748257603278,0.05146329,109560.0,109550.0,1.33191905]
[1748257603481,0.02026329,109560.0,109550.0,1.33191905]
[1748257603915,0.01113663,109560.0,109550.0,1.42146461]
[1748257604128,0.01113663,109560.0,109550.0,3.21659046]
[1748257604340,0.01113663,109560.0,109550.0,3.20072646]
[1748257605864,0.01113663,109560.0,109550.0,3.22979997]
[1748257606094,0.01113663,109560.0,109550.0,3.22959211]
[1748257612539,0.01013663,109560.0,109550.0,3.22959211]
[1748257612840,0.01013663,109560.0,109550.0,3.23059211]
[1748257613042,0.01013663,109560.0,109550.0,3.08697253]
[1748257613256,0.01013663,109560.0,109550.0,3.23485253]
[1748257613457,0.01013663,109560.0,109550.0,3.20577902]
[1748257615483,0.01013663,109560.0,109550.0,3.05989902]
[1748257615705,0.01013663,109560.0,109550.0,3.32989902]
[1748257615918,0.01013663,109560.0,109550.0,3.36049902]
[1748257617273,0.01013663,109560.0,109550.0,3.15084805]
[1748257617627,0.01013663,109560.0,109550.0,2.78754805]
[1748257617834,0.01013663,109560.0,109550.0,3.08814805]
[1748257618349,0.01013663,109560.0,109550.0,3.11874805]
[1748257619306,0.01013663,109560.0,109550.0,3.45874805]
[1748257621680,0.01013663,109560.0,109550.0,3.42814805]
[1748257623300,0.01013663,109560.0,109550.0,3.49114805]
[1748257623495,0.01013663,109560.0,109550.0,3.45974805]
[1748257624312,0.01013663,109560.0,109550.0,3.49114805]
[1748257625587,0.0421,109570.0,109560.0,1.7710236]
[1748257625588,0.00782736,109570.0,109560.0,1.7710236]
[1748257625839,0.00787718,109570.0,109560.0,6.28287156]
[1748257626078,0.00787718,109570.0,109560.0,6.64835626]
[1748257626313,0.00787718,109570.0,109560.0,6.62403484]
[1748257627185,0.00887718,109570.0,109560.0,6.62803484]
[1748257627833,0.00887718,109570.0,109560.0,6.65710835]
[1748257628049,0.00987718,109570.0,109560.0,6.66210835]
[1748257629327,0.00215856,109570.0,109560.0,7.81958017]
[1748257629757,0.01,109580.0,109570.0,0.02737875]
[1748257629969,0.01,109590.0,109580.0,0.55989128]
[1748257630171,0.01,109590.0,109580.0,4.10743366]
[1748257630582,0.01,109590.0,109580.0,4.13479766]
[1748257631853,0.01004983,109590.0,109580.0,4.13479766]
[1748257632051,0.01004983,109590.0,109580.0,3.76880082]
[1748257632281,0.01104983,109590.0,109580.0,3.76880082]
[1748257634164,0.01104983,109590.0,109580.0,3.91468082]
[1748257635801,0.01104983,109590.0,109580.0,3.61468082]
[1748257636012,0.2928459,109590.0,109580.0,0.6651621]
[1748257636217,0.28372173,109590.0,109580.0,0.69253876]
[1748257636367,0.28372173,109590.0,109580.0,0.5756292]
[1748257636728,0.10122333,109590.0,109580.0,1.07975961]
[1748257636934,0.11034816,109590.0,109580.0,1.07975961]
[1748257637220,0.29284656,109590.0,109580.0,0.54989171]
[1748257637419,0.29284656,109590.0,109580.0,1.07063453]
[1748257637634,0.29284656,109590.0,109580.0,1.07975978]
[1748257638061,0.11034816,109590.0,109580.0,1.07975919]
[1748257638285,0.29284656,109590.0,109580.0,1.07975919]
[1748257638485,0.30197148,109590.0,109580.0,1.07975919]
[1748257640335,0.30197148,109590.0,109580.0,1.07063403]
[1748257640550,0.29284723,109590.0,109580.0,1.07063403]
[1748257641210,0.09209858,109590.0,109580.0,1.07975919]
[1748257641429,0.10122333,109590.0,109580.0,1.07975919]
[1748257641860,0.07384983,109590.0,109580.0,1.07975919]
[1748257642076,0.07384983,109590.0,109580.0,1.16885575]
[1748257642299,0.04244983,109590.0,109580.0,1.53459324]
[1748257642506,0.051574,109590.0,109580.0,1.16885575]
[1748257642730,0.07374983,109590.0,109580.0,1.16885575]
[1748257644104,0.04244983,109590.0,109580.0,1.16885575]
[1748257645409,0.07164983,109590.0,109580.0,1.16885575]
[1748257646436,0.07164983,109590.0,109580.0,1.19622375]
[1748257647632,0.04244983,109590.0,109580.0,1.19622375]
[1748257648249,0.051574,109590.0,109580.0,1.19622375]
[1748257648400,0.081974,109590.0,109580.0,1.19622375]
[1748257648611,0.07284983,109590.0,109580.0,1.19622375]
[1748257650997,0.081974,109590.0,109580.0,1.05034375]
[1748257651225,0.081974,109590.0,109580.0,1.19622375]
[1748257651646,0.07284983,109590.0,109580.0,1.19622375]
[1748257652048,0.08197416,109590.0,109580.0,1.19622375]
[1748257652253,0.08197408,109590.0,109580.0,1.19622375]
[1748257653019,0.07284983,109590.0,109580.0,1.19622375]
[1748257656818,0.04244983,109590.0,109580.0,1.19622375]
[1748257657628,0.04244983,109590.0,109580.0,1.56196124]
[1748257657777,0.04244983,109590.0,109580.0,1.19622375]
[1748257659109,0.07424983,109590.0,109580.0,1.19622375]
[1748257660903,0.07424983,109590.0,109580.0,1.03988523]
[1748257661067,0.07424983,109590.0,109580.0,1.22240028]
[1748257662079,0.07424983,109590.0,109580.0,1.58834437]
[1748257662872,0.07424983,109590.0,109580.0,0.71078279]
[1748257663079,0.07424983,109590.0,109580.0,1.58834437]
[1748257667612,0.07004983,109590.0,109580.0,1.58834437]
[1748257671418,0.07004983,109590.0,109580.0,1.61741788]
[1748257675129,0.07004983,109590.0,109580.0,1.26429922]
[1748257676166,0.07004983,109590.0,109580.0,1.27342463]
[1748257676459,0.07004983,109590.0,109580.0,1.24435112]
[1748257677141,0.07004983,109590.0,109580.0,1.25347662]
[1748257678921,0.07004983,109590.0,109580.0,1.59347662]
[1748257679125,0.06275837,109590.0,109580.0,1.59347662]
[1748257679336,0.00105693,109590.0,109580.0,1.59347662]
[1748257679561,0.19246525,109610.0,109600.0,0.52248175]
[1748257679767,0.19246525,109610.0,109600.0,0.88832254]
[1748257679970,0.1468936,109610.0,109600.0,0.88832254]
[1748257680186,0.10132195,109610.0,109600.0,0.70584079]
[1748257680399,0.0557503,109610.0,109600.0,0.70584079]
[1748257680599,0.0557503,109610.0,109600.0,0.89744646]
[1748257680806,0.19244875,109620.0,109610.0,0.34]
[1748257681020,0.19253972,109620.0,109610.0,0.34]
[1748257682328,0.22563972,109620.0,109610.0,0.341]
[1748257682527,0.25803972,109620.0,109610.0,0.341]
[1748257682726,0.25803972,109620.0,109610.0,0.70684079]
[1748257683824,0.26203972,109620.0,109610.0,0.70684079]
[1748257684191,0.26203972,109620.0,109610.0,0.72046853]
[1748257684475,0.26203972,109620.0,109610.0,0.35462774]
[1748257684738,0.26203972,109620.0,109610.0,0.72046853]
[1748257686917,0.40787972,109620.0,109610.0,0.72046853]
[1748257689016,0.36230997,109620.0,109610.0,0.72046853]
[1748257691377,0.31673944,109620.0,109610.0,0.72046853]
[1748257691578,0.27116891,109620.0,109610.0,0.72046853]
[1748257691796,0.25905891,109620.0,109610.0,0.72046853]
[1748257692028,0.17463838,109620.0,109610.0,0.72046853]
[1748257692158,0.35710207,109620.0,109610.0,0.72046853]
[1748257692671,0.32147207,109620.0,109610.0,0.72046853]
[1748257693006,0.1701477,109620.0,109610.0,0.91205688]
[1748257693220,0.22484664,109620.0,109610.0,0.92118005]
[1748257693451,0.14584,109620.0,109610.0,0.92118005]
[1748257693763,0.17032927,109620.0,109610.0,0.93030305]
[1748257693907,0.17032927,109620.0,109610.0,0.92118005]
[1748257694118,0.07918821,109620.0,109610.0,0.72046853]
[1748257694999,0.10778821,109620.0,109610.0,0.72046853]
[1748257695816,0.13728821,109620.0,109610.0,0.72046853]
[1748257696030,0.13728821,109620.0,109610.0,0.35462774]
[1748257696234,0.13728821,109620.0,109610.0,0.72046853]
[1748257700778,0.13728821,109620.0,109610.0,1.08630932]
[1748257710643,0.13728821,109620.0,109610.0,0.72046853]